[Event "Titled Tuesday Blitz June 27 Late 2023"]
[White "Leitao, Rafael"]
[Black "Jimenez Almeida, Luis David"]
[WhiteFideId "2101246"]
[BlackFideId "22242244"]
[WhiteElo "2787"]
[BlackElo "2553"]
[Result "1-0"]
[Round "6"]
[TimeControl "180+2"]
[Date "2023.06.27"]
[WhiteClock "0:00:07"]
[BlackClock "0:00:07"]
[Board "36"]

1. c4 {[%clk 0:03:00]}  g6 {[%clk 0:02:58]} 2. g3 {[%clk 0:02:59]}  Bg7 {[%clk 0:02:58]} 3. Bg2 {[%clk 0:02:59]}  f5 {[%clk 0:02:57]} 4. Nf3 {[%clk 0:02:57]}  Nf6 {[%clk 0:02:58]} 5. Nc3 {[%clk 0:02:57]}  d6 {[%clk 0:02:58]} 6. d3 {[%clk 0:02:58]}  O-O {[%clk 0:02:57]} 7. O-O {[%clk 0:02:56]}  Nc6 {[%clk 0:02:58]} 8. e4 {[%clk 0:02:54]}  e5 {[%clk 0:02:55]} 9. exf5 {[%clk 0:02:27]}  Bxf5 {[%clk 0:02:50]} 10. d4 {[%clk 0:02:18]}  Nd7 {[%clk 0:01:52]} 11. Bg5 {[%clk 0:02:13]}  Qb8 {[%clk 0:01:37]} 12. d5 {[%clk 0:01:53]}  Nd4 {[%clk 0:01:34]} 13. Nxd4 {[%clk 0:01:51]}  exd4 {[%clk 0:01:35]} 14. Nb5 {[%clk 0:01:50]}  h6 {[%clk 0:01:18]} 15. Bc1 {[%clk 0:01:43]}  Nb6 {[%clk 0:01:01]} 16. Nxd4 {[%clk 0:01:35]}  Nxc4 {[%clk 0:01:00]} 17. Nxf5 {[%clk 0:01:28]}  gxf5 {[%clk 0:00:58]} 18. Qc2 {[%clk 0:01:18]}  b5 {[%clk 0:00:52]} 19. Bh3 {[%clk 0:01:12]}  Qc8 {[%clk 0:00:46]} 20. Re1 {[%clk 0:01:00]}  Ne5 {[%clk 0:00:41]} 21. Bg2 {[%clk 0:00:51]}  Qd7 {[%clk 0:00:39]} 22. Bd2 {[%clk 0:00:45]}  a5 {[%clk 0:00:34]} 23. Rac1 {[%clk 0:00:44]}  Rf7 {[%clk 0:00:31]} 24. h3 {[%clk 0:00:43]}  Re8 {[%clk 0:00:27]} 25. b3 {[%clk 0:00:40]}  b4 {[%clk 0:00:25]} 26. f4 {[%clk 0:00:40]}  Ng6 {[%clk 0:00:22]} 27. Qc6 {[%clk 0:00:37]}  Rxe1+ {[%clk 0:00:12]} 28. Rxe1 {[%clk 0:00:36]}  Qxc6 {[%clk 0:00:12]} 29. dxc6 {[%clk 0:00:35]}  Re7 {[%clk 0:00:12]} 30. Kf1 {[%clk 0:00:25]}  Bd4 {[%clk 0:00:10]} 31. Rxe7 {[%clk 0:00:25]}  Nxe7 {[%clk 0:00:11]} 32. Ke2 {[%clk 0:00:25]}  Kf7 {[%clk 0:00:11]} 33. Kd3 {[%clk 0:00:25]}  Bf2 {[%clk 0:00:11]} 34. g4 {[%clk 0:00:25]}  Ke6 {[%clk 0:00:09]} 35. Kc4 {[%clk 0:00:25]}  fxg4 {[%clk 0:00:09]} 36. hxg4 {[%clk 0:00:25]}  d5+ {[%clk 0:00:08]} 37. Kb5 {[%clk 0:00:25]}  Kd6 {[%clk 0:00:08]} 38. Kxa5 {[%clk 0:00:23]}  Nxc6+ {[%clk 0:00:08]} 39. Ka6 {[%clk 0:00:20]}  Bd4 {[%clk 0:00:08]} 40. f5 {[%clk 0:00:20]}  Bc3 {[%clk 0:00:08]} 41. Bxh6 {[%clk 0:00:20]}  Ne5 {[%clk 0:00:07]} 42. Bf4 {[%clk 0:00:19]}  d4 {[%clk 0:00:07]} 43. g5 {[%clk 0:00:20]}  d3 {[%clk 0:00:07]} 44. g6 {[%clk 0:00:20]}  d2 {[%clk 0:00:06]} 45. Bf3 {[%clk 0:00:20]}  Ke7 {[%clk 0:00:05]} 46. Bd1 {[%clk 0:00:17]}  Kf6 {[%clk 0:00:05]} 47. Kb7 {[%clk 0:00:13]}  c5 {[%clk 0:00:05]} 48. Kb6 {[%clk 0:00:13]}  c4 {[%clk 0:00:05]} 49. Bxe5+ {[%clk 0:00:14]}  Bxe5 {[%clk 0:00:04]} 50. bxc4 {[%clk 0:00:14]}  Kxf5 {[%clk 0:00:02]} 51. c5 {[%clk 0:00:13]}  Bd4 {[%clk 0:00:02]} 52. Kb5 {[%clk 0:00:12]}  Kxg6 {[%clk 0:00:03]} 53. Kxb4 {[%clk 0:00:13]}  Kf7 {[%clk 0:00:03]} 54. Kc4 {[%clk 0:00:11]}  Be3 {[%clk 0:00:04]} 55. Kd5 {[%clk 0:00:08]}  Ke7 {[%clk 0:00:04]} 56. Kc6 {[%clk 0:00:08]}  Kd8 {[%clk 0:00:04]} 57. Bg4 {[%clk 0:00:09]}  Bf4 {[%clk 0:00:02]} 58. a4 {[%clk 0:00:09]}  d1=Q {[%clk 0:00:02]} 59. Bxd1 {[%clk 0:00:08]}  Bd2 {[%clk 0:00:03]} 60. Kb7 {[%clk 0:00:08]}  Ba5 {[%clk 0:00:02]} 61. c6 {[%clk 0:00:07]}  Bc7 {[%clk 0:00:02]} 62. Be2 {[%clk 0:00:07]}  Ba5 {[%clk 0:00:03]} 63. Bd1 {[%clk 0:00:07]}  Bc7 {[%clk 0:00:03]} 64. Ka6 {[%clk 0:00:07]}  Kc8 {[%clk 0:00:04]} 65. a5 {[%clk 0:00:07]}  Kb8 {[%clk 0:00:05]} 66. Kb5 {[%clk 0:00:07]}  Bd6 {[%clk 0:00:05]} 67. a6 {[%clk 0:00:07]}  Bc7 {[%clk 0:00:05]} 68. Be2 {[%clk 0:00:08]}  Ka7 {[%clk 0:00:05]} 69. Kc5 {[%clk 0:00:07]}  Kb8 {[%clk 0:00:06]} 70. Kd5 {[%clk 0:00:07]}  Kc8 {[%clk 0:00:07]} 71. Ke6 {[%clk 0:00:08]}  Bb6 {[%clk 0:00:07]} 72. Kd6 {[%clk 0:00:08]}  Kd8 {[%clk 0:00:07]} 73. a7 {[%clk 0:00:07]}  Bxa7 {[%clk 0:00:07]} 74. c7+ {[%clk 0:00:07]}  Kc8 {[%clk 0:00:07]} 75. Ba6# {[%clk 0:00:07]} 1-0


[Site "https://www.chess.com"]

[Event "Titled Tuesday Blitz June 27 Late 2023"]
[White "He, Anthony"]
[Black "Tologon tegin, Semetei"]
[WhiteFideId "2088215"]
[BlackFideId "13800574"]
[WhiteElo "2983"]
[BlackElo "2548"]
[Result "1-0"]
[Round "6"]
[TimeControl "180+2"]
[Date "2023.06.27"]
[WhiteClock "0:01:34"]
[BlackClock "0:00:00"]
[Board "38"]

1. e4 {[%clk 0:02:57]}  e6 {[%clk 0:02:58]} 2. d4 {[%clk 0:02:57]}  b6 {[%clk 0:02:58]} 3. Nf3 {[%clk 0:02:56]}  Bb7 {[%clk 0:02:58]} 4. Bd3 {[%clk 0:02:57]}  Nf6 {[%clk 0:02:57]} 5. e5 {[%clk 0:02:57]}  Ne4 {[%clk 0:02:57]} 6. Qe2 {[%clk 0:02:58]}  f5 {[%clk 0:02:53]} 7. exf6 {[%clk 0:02:58]}  Nxf6 {[%clk 0:02:52]} 8. O-O {[%clk 0:02:58]}  Be7 {[%clk 0:02:52]} 9. Nc3 {[%clk 0:02:58]}  O-O {[%clk 0:02:52]} 10. Bg5 {[%clk 0:02:58]}  Nc6 {[%clk 0:02:47]} 11. Rae1 {[%clk 0:02:53]}  Nb4 {[%clk 0:02:46]} 12. Bxf6 {[%clk 0:02:51]}  Bxf6 {[%clk 0:02:46]} 13. Be4 {[%clk 0:02:52]}  Bxe4 {[%clk 0:02:42]} 14. Nxe4 {[%clk 0:02:53]}  Nd5 {[%clk 0:02:41]} 15. c3 {[%clk 0:02:52]}  Qe8 {[%clk 0:02:34]} 16. Qb5 {[%clk 0:02:45]}  c6 {[%clk 0:02:30]} 17. Qd3 {[%clk 0:02:43]}  Qg6 {[%clk 0:02:23]} 18. Nxf6+ {[%clk 0:02:43]}  Qxf6 {[%clk 0:02:23]} 19. Ne5 {[%clk 0:02:42]}  Rad8 {[%clk 0:02:14]} 20. Re4 {[%clk 0:02:41]}  Nf4 {[%clk 0:01:59]} 21. Qg3 {[%clk 0:02:37]}  Qf5 {[%clk 0:01:58]} 22. Rfe1 {[%clk 0:02:37]}  c5 {[%clk 0:01:55]} 23. Ng4 {[%clk 0:02:33]}  Kh8 {[%clk 0:01:53]} 24. Re5 {[%clk 0:02:33]}  Qc2 {[%clk 0:01:50]} 25. dxc5 {[%clk 0:02:32]}  Nd3 {[%clk 0:01:41]} 26. R5e2 {[%clk 0:02:30]}  Qa4 {[%clk 0:01:35]} 27. Qxd3 {[%clk 0:02:26]}  Qxg4 {[%clk 0:01:33]} 28. cxb6 {[%clk 0:02:27]}  axb6 {[%clk 0:01:33]} 29. h3 {[%clk 0:02:27]}  Qh4 {[%clk 0:01:27]} 30. Qd6 {[%clk 0:02:23]}  b5 {[%clk 0:01:23]} 31. Rd1 {[%clk 0:02:22]}  Rf5 {[%clk 0:01:20]} 32. Rd4 {[%clk 0:02:19]}  Qf6 {[%clk 0:01:15]} 33. Rxe6 {[%clk 0:02:19]}  Qg5 {[%clk 0:01:01]} 34. Qxd7 {[%clk 0:02:15]}  Rdf8 {[%clk 0:00:57]} 35. Re8 {[%clk 0:02:12]}  Rxf2 {[%clk 0:00:54]} 36. Rxf8+ {[%clk 0:02:10]}  Rxf8 {[%clk 0:00:55]} 37. Qd6 {[%clk 0:02:06]}  Qf5 {[%clk 0:00:32]} 38. Kh2 {[%clk 0:02:05]}  h6 {[%clk 0:00:31]} 39. Rd5 {[%clk 0:02:02]}  Qf1 {[%clk 0:00:21]} 40. Rd2 {[%clk 0:01:56]}  Re8 {[%clk 0:00:19]} 41. Qd4 {[%clk 0:01:52]}  Re1 {[%clk 0:00:18]} 42. Qd8+ {[%clk 0:01:51]}  Kh7 {[%clk 0:00:18]} 43. Qd3+ {[%clk 0:01:41]}  Qxd3 {[%clk 0:00:18]} 44. Rxd3 {[%clk 0:01:42]}  Re2 {[%clk 0:00:18]} 45. b4 {[%clk 0:01:40]}  Rxa2 {[%clk 0:00:18]} 46. Rd5 {[%clk 0:01:41]}  Rc2 {[%clk 0:00:18]} 47. Rc5 {[%clk 0:01:41]}  Kg6 {[%clk 0:00:17]} 48. Kg3 {[%clk 0:01:42]}  Kf6 {[%clk 0:00:17]} 49. Kf3 {[%clk 0:01:43]}  g5 {[%clk 0:00:16]} 50. g3 {[%clk 0:01:41]}  h5 {[%clk 0:00:15]} 51. h4 {[%clk 0:01:42]}  gxh4 {[%clk 0:00:06]} 52. gxh4 {[%clk 0:01:42]}  Kg6 {[%clk 0:00:07]} 53. Kf4 {[%clk 0:01:42]}  Rf2+ {[%clk 0:00:05]} 54. Ke5 {[%clk 0:01:42]}  Rf3 {[%clk 0:00:04]} 55. Kd6 {[%clk 0:01:39]}  Rh3 {[%clk 0:00:03]} 56. Rxb5 {[%clk 0:01:34]}  Rxc3 {[%clk 0:00:03]} 57. Rd5 {[%clk 0:01:32]}  Rb3 {[%clk 0:00:03]} 58. Rd4 {[%clk 0:01:32]}  Kf5 {[%clk 0:00:03]} 59. Kc5 {[%clk 0:01:33]}  Ke5 {[%clk 0:00:03]} 60. Rc4 {[%clk 0:01:34]}  Rb1 {[%clk 0:00:00]} 61. b5 {[%clk 0:01:34]} 1-0


[Site "https://www.chess.com"]

[Event "Titled Tuesday Blitz June 27 Late 2023"]
[White "Xiong, Jeffery"]
[Black "Ballester Llagaria, Luis Eduardo"]
[WhiteFideId "2047640"]
[BlackFideId "2297620"]
[WhiteElo "2912"]
[BlackElo "2593"]
[Result "1-0"]
[Round "6"]
[TimeControl "180+2"]
[Date "2023.06.27"]
[WhiteClock "0:01:39"]
[BlackClock "0:00:08"]
[Board "39"]

1. e4 {[%clk 0:03:00]}  c5 {[%clk 0:02:51]} 2. Nf3 {[%clk 0:03:01]}  e6 {[%clk 0:02:50]} 3. c3 {[%clk 0:03:01]}  d5 {[%clk 0:02:50]} 4. e5 {[%clk 0:03:01]}  d4 {[%clk 0:02:49]} 5. g3 {[%clk 0:03:01]}  Nc6 {[%clk 0:02:48]} 6. Bg2 {[%clk 0:03:02]}  Nge7 {[%clk 0:02:49]} 7. O-O {[%clk 0:03:02]}  Ng6 {[%clk 0:02:49]} 8. Re1 {[%clk 0:03:02]}  Be7 {[%clk 0:02:49]} 9. d3 {[%clk 0:03:01]}  O-O {[%clk 0:02:46]} 10. Na3 {[%clk 0:03:00]}  dxc3 {[%clk 0:02:24]} 11. bxc3 {[%clk 0:03:00]}  b6 {[%clk 0:02:25]} 12. h4 {[%clk 0:02:59]}  Re8 {[%clk 0:02:12]} 13. h5 {[%clk 0:02:59]}  Nf8 {[%clk 0:02:12]} 14. h6 {[%clk 0:02:58]}  g6 {[%clk 0:02:13]} 15. Nc4 {[%clk 0:02:54]}  Bb7 {[%clk 0:02:09]} 16. a4 {[%clk 0:02:54]}  a6 {[%clk 0:02:03]} 17. Rb1 {[%clk 0:02:53]}  b5 {[%clk 0:01:58]} 18. axb5 {[%clk 0:02:53]}  axb5 {[%clk 0:01:59]} 19. Rxb5 {[%clk 0:02:52]}  Ba6 {[%clk 0:01:59]} 20. Rb1 {[%clk 0:02:46]}  Na5 {[%clk 0:01:50]} 21. Nxa5 {[%clk 0:02:37]}  Qxa5 {[%clk 0:01:51]} 22. c4 {[%clk 0:02:37]}  Red8 {[%clk 0:01:37]} 23. Bg5 {[%clk 0:02:35]}  Qc7 {[%clk 0:01:28]} 24. Bxe7 {[%clk 0:02:31]}  Qxe7 {[%clk 0:01:29]} 25. Nd2 {[%clk 0:02:31]}  Rab8 {[%clk 0:01:22]} 26. Rxb8 {[%clk 0:02:29]}  Rxb8 {[%clk 0:01:23]} 27. Ne4 {[%clk 0:02:30]}  Nd7 {[%clk 0:01:23]} 28. Qf3 {[%clk 0:02:29]}  Bb7 {[%clk 0:01:11]} 29. Rb1 {[%clk 0:02:18]}  Bxe4 {[%clk 0:01:08]} 30. Rxb8+ {[%clk 0:02:19]}  Nxb8 {[%clk 0:01:08]} 31. Qxe4 {[%clk 0:02:20]}  Nd7 {[%clk 0:00:53]} 32. f4 {[%clk 0:02:20]}  f6 {[%clk 0:00:39]} 33. exf6 {[%clk 0:02:13]}  Nxf6 {[%clk 0:00:40]} 34. Qa8+ {[%clk 0:02:11]}  Kf7 {[%clk 0:00:39]} 35. Bf3 {[%clk 0:01:55]}  Qd6 {[%clk 0:00:30]} 36. Qa7+ {[%clk 0:01:48]}  Qd7 {[%clk 0:00:27]} 37. Qxd7+ {[%clk 0:01:46]}  Nxd7 {[%clk 0:00:28]} 38. Kf2 {[%clk 0:01:45]}  e5 {[%clk 0:00:23]} 39. Ke3 {[%clk 0:01:44]}  Kf6 {[%clk 0:00:23]} 40. Bg4 {[%clk 0:01:42]}  exf4+ {[%clk 0:00:19]} 41. gxf4 {[%clk 0:01:41]}  Nb6 {[%clk 0:00:15]} 42. Ke4 {[%clk 0:01:41]}  Na4 {[%clk 0:00:14]} 43. Kd5 {[%clk 0:01:41]}  Nb2 {[%clk 0:00:14]} 44. Be2 {[%clk 0:01:40]}  Na4 {[%clk 0:00:13]} 45. Bg4 {[%clk 0:01:37]}  Nb2 {[%clk 0:00:12]} 46. d4 {[%clk 0:01:37]}  cxd4 {[%clk 0:00:12]} 47. Kxd4 {[%clk 0:01:38]}  g5 {[%clk 0:00:13]} 48. c5 {[%clk 0:01:38]}  gxf4 {[%clk 0:00:10]} 49. c6 {[%clk 0:01:38]}  Na4 {[%clk 0:00:10]} 50. c7 {[%clk 0:01:39]}  Nb6 {[%clk 0:00:10]} 51. Kc5 {[%clk 0:01:40]}  f3 {[%clk 0:00:09]} 52. Kxb6 {[%clk 0:01:39]}  f2 {[%clk 0:00:08]} 53. Bh3 {[%clk 0:01:39]} 1-0


[Site "https://www.chess.com"]

[Event "Titled Tuesday Blitz June 27 Late 2023"]
[White "Przybylski, Wojciech"]
[Black "Ter-Sahakyan, Samvel"]
[WhiteFideId "1117599"]
[BlackFideId "13302531"]
[WhiteElo "2586"]
[BlackElo "2891"]
[Result "0-1"]
[Round "6"]
[TimeControl "180+2"]
[Date "2023.06.27"]
[WhiteClock "0:00:05"]
[BlackClock "0:00:47"]
[Board "40"]

1. d4 {[%clk 0:03:00]}  Nf6 {[%clk 0:02:59]} 2. Nd2 {[%clk 0:02:58]}  d5 {[%clk 0:02:54]} 3. g3 {[%clk 0:02:58]}  c5 {[%clk 0:02:53]} 4. Ngf3 {[%clk 0:02:57]}  cxd4 {[%clk 0:02:52]} 5. Nxd4 {[%clk 0:02:56]}  e5 {[%clk 0:02:53]} 6. N4b3 {[%clk 0:02:56]}  a5 {[%clk 0:02:51]} 7. a4 {[%clk 0:02:55]}  Nc6 {[%clk 0:02:49]} 8. Bg2 {[%clk 0:02:54]}  h5 {[%clk 0:02:49]} 9. h3 {[%clk 0:02:52]}  Be6 {[%clk 0:02:41]} 10. O-O {[%clk 0:02:51]}  Qd7 {[%clk 0:02:38]} 11. Kh2 {[%clk 0:02:51]}  e4 {[%clk 0:02:32]} 12. e3 {[%clk 0:02:45]}  h4 {[%clk 0:02:30]} 13. g4 {[%clk 0:02:39]}  Bd6+ {[%clk 0:02:28]} 14. Kg1 {[%clk 0:02:38]}  Nxg4 {[%clk 0:02:14]} 15. hxg4 {[%clk 0:02:33]}  h3 {[%clk 0:02:15]} 16. Bxe4 {[%clk 0:02:29]}  dxe4 {[%clk 0:01:37]} 17. Nxe4 {[%clk 0:02:29]}  Bd5 {[%clk 0:01:18]} 18. f3 {[%clk 0:00:52]}  Bxe4 {[%clk 0:01:08]} 19. fxe4 {[%clk 0:00:51]}  Ne5 {[%clk 0:01:03]} 20. Nd4 {[%clk 0:00:43]}  Nxg4 {[%clk 0:01:01]} 21. Nf5 {[%clk 0:00:41]}  Bh2+ {[%clk 0:01:01]} 22. Kh1 {[%clk 0:00:39]}  Nf2+ {[%clk 0:01:00]} 23. Kxh2 {[%clk 0:00:32]}  Nxd1 {[%clk 0:00:59]} 24. b3 {[%clk 0:00:25]}  Qc7+ {[%clk 0:00:53]} 25. Kh1 {[%clk 0:00:23]}  Qxc2 {[%clk 0:00:50]} 26. Nxg7+ {[%clk 0:00:20]}  Kd8 {[%clk 0:00:49]} 27. Ba3 {[%clk 0:00:05]}  Qg2# {[%clk 0:00:47]} 0-1


[Site "https://www.chess.com"]

[Event "Titled Tuesday Blitz June 27 Late 2023"]
[White "Miladinovic, Igor"]
[Black "Sargsyan, Anna M."]
[WhiteFideId "4203380"]
[BlackFideId "13308130"]
[WhiteElo "2856"]
[BlackElo "2582"]
[Result "0-1"]
[Round "6"]
[TimeControl "180+2"]
[Date "2023.06.27"]
[WhiteClock "0:00:12"]
[BlackClock "0:00:06"]
[Board "41"]

1. d4 {[%clk 0:03:00]}  d5 {[%clk 0:02:59]} 2. Bg5 {[%clk 0:02:59]}  Bf5 {[%clk 0:02:56]} 3. e3 {[%clk 0:02:58]}  c6 {[%clk 0:02:56]} 4. Nf3 {[%clk 0:02:57]}  Nd7 {[%clk 0:02:56]} 5. c4 {[%clk 0:02:54]}  Ngf6 {[%clk 0:02:53]} 6. Nc3 {[%clk 0:02:53]}  e6 {[%clk 0:02:53]} 7. Qb3 {[%clk 0:02:53]}  Qb6 {[%clk 0:02:53]} 8. c5 {[%clk 0:02:54]}  Qc7 {[%clk 0:02:50]} 9. Bf4 {[%clk 0:02:53]}  Qc8 {[%clk 0:02:51]} 10. h3 {[%clk 0:02:52]}  Be7 {[%clk 0:02:51]} 11. Qd1 {[%clk 0:02:52]}  O-O {[%clk 0:02:49]} 12. Bd3 {[%clk 0:02:52]}  Re8 {[%clk 0:02:46]} 13. O-O {[%clk 0:02:51]}  h6 {[%clk 0:02:44]} 14. b4 {[%clk 0:02:51]}  Bd8 {[%clk 0:02:33]} 15. Rb1 {[%clk 0:02:38]}  a6 {[%clk 0:02:31]} 16. a4 {[%clk 0:02:36]}  Bc7 {[%clk 0:02:31]} 17. Bxc7 {[%clk 0:02:33]}  Qxc7 {[%clk 0:02:32]} 18. Qc2 {[%clk 0:02:31]}  Bxd3 {[%clk 0:02:31]} 19. Qxd3 {[%clk 0:02:32]}  e5 {[%clk 0:02:32]} 20. Nd2 {[%clk 0:02:26]}  e4 {[%clk 0:02:25]} 21. Qe2 {[%clk 0:02:26]}  Nh7 {[%clk 0:02:24]} 22. Rb3 {[%clk 0:02:16]}  Re6 {[%clk 0:02:23]} 23. b5 {[%clk 0:02:14]}  axb5 {[%clk 0:02:23]} 24. axb5 {[%clk 0:02:15]}  Rg6 {[%clk 0:02:19]} 25. f4 {[%clk 0:02:09]}  exf3 {[%clk 0:02:18]} 26. Nxf3 {[%clk 0:02:05]}  Re8 {[%clk 0:02:18]} 27. Qf2 {[%clk 0:01:49]}  Rge6 {[%clk 0:01:53]} 28. bxc6 {[%clk 0:01:40]}  bxc6 {[%clk 0:01:52]} 29. Rfb1 {[%clk 0:01:40]}  Qd8 {[%clk 0:01:46]} 30. Na4 {[%clk 0:01:34]}  Nhf6 {[%clk 0:01:40]} 31. Rb7 {[%clk 0:01:28]}  Ne4 {[%clk 0:01:39]} 32. Qh4 {[%clk 0:01:14]}  g5 {[%clk 0:01:21]} 33. Qg4 {[%clk 0:01:01]}  Qa5 {[%clk 0:00:04]} 34. Rxd7 {[%clk 0:00:50]}  Qxa4 {[%clk 0:00:04]} 35. Ne5 {[%clk 0:00:50]}  Qc2 {[%clk 0:00:02]} 36. Rf1 {[%clk 0:00:50]}  Nf6 {[%clk 0:00:02]} 37. Qf5 {[%clk 0:00:46]}  Qxf5 {[%clk 0:00:02]} 38. Rxf5 {[%clk 0:00:46]}  Nxd7 {[%clk 0:00:03]} 39. Nxd7 {[%clk 0:00:45]}  Kg7 {[%clk 0:00:03]} 40. Kh2 {[%clk 0:00:27]}  f6 {[%clk 0:00:03]} 41. Rf1 {[%clk 0:00:25]}  R8e7 {[%clk 0:00:03]} 42. Nb6 {[%clk 0:00:24]}  Rxe3 {[%clk 0:00:04]} 43. Nc8 {[%clk 0:00:24]}  Rc7 {[%clk 0:00:03]} 44. Nd6 {[%clk 0:00:24]}  Rd3 {[%clk 0:00:03]} 45. Re1 {[%clk 0:00:23]}  Kg6 {[%clk 0:00:03]} 46. Re8 {[%clk 0:00:22]}  Ra7 {[%clk 0:00:02]} 47. Rg8+ {[%clk 0:00:21]}  Rg7 {[%clk 0:00:03]} 48. Rc8 {[%clk 0:00:20]}  h5 {[%clk 0:00:03]} 49. Rxc6 {[%clk 0:00:19]}  g4 {[%clk 0:00:04]} 50. hxg4 {[%clk 0:00:15]}  hxg4 {[%clk 0:00:05]} 51. g3 {[%clk 0:00:15]}  Rd2+ {[%clk 0:00:05]} 52. Kg1 {[%clk 0:00:16]}  Ra7 {[%clk 0:00:06]} 53. Ne8 {[%clk 0:00:12]}  Ra1# {[%clk 0:00:06]} 0-1


[Site "https://www.chess.com"]

[Event "Titled Tuesday Blitz June 27 Late 2023"]
[White "Ganiev, Roman"]
[Black "Troff, Kayden"]
[WhiteFideId "4131452"]
[BlackFideId "2047896"]
[WhiteElo "2578"]
[BlackElo "2724"]
[Result "0-1"]
[Round "6"]
[TimeControl "180+2"]
[Date "2023.06.27"]
[WhiteClock "0:00:01"]
[BlackClock "0:00:16"]
[Board "44"]

1. e4 {[%clk 0:03:00]}  c5 {[%clk 0:02:59]} 2. Nf3 {[%clk 0:03:00]}  g6 {[%clk 0:02:57]} 3. c3 {[%clk 0:02:58]}  Bg7 {[%clk 0:02:57]} 4. d4 {[%clk 0:02:57]}  cxd4 {[%clk 0:02:58]} 5. cxd4 {[%clk 0:02:57]}  d5 {[%clk 0:02:58]} 6. e5 {[%clk 0:02:54]}  Nc6 {[%clk 0:02:58]} 7. Nc3 {[%clk 0:02:54]}  Nh6 {[%clk 0:02:57]} 8. h3 {[%clk 0:02:51]}  O-O {[%clk 0:02:57]} 9. Be2 {[%clk 0:02:50]}  f6 {[%clk 0:02:57]} 10. exf6 {[%clk 0:02:49]}  exf6 {[%clk 0:02:47]} 11. O-O {[%clk 0:02:50]}  Be6 {[%clk 0:02:40]} 12. Re1 {[%clk 0:02:49]}  Bf7 {[%clk 0:02:38]} 13. Bd3 {[%clk 0:02:49]}  f5 {[%clk 0:02:35]} 14. Bg5 {[%clk 0:02:49]}  Qb6 {[%clk 0:02:27]} 15. Qd2 {[%clk 0:02:48]}  Ng4 {[%clk 0:02:11]} 16. hxg4 {[%clk 0:02:47]}  fxg4 {[%clk 0:02:12]} 17. Ne5 {[%clk 0:02:47]}  Nxe5 {[%clk 0:01:33]} 18. dxe5 {[%clk 0:02:47]}  g3 {[%clk 0:01:34]} 19. Bf6 {[%clk 0:02:44]}  Be6 {[%clk 0:01:23]} 20. Qf4 {[%clk 0:01:20]}  Qxb2 {[%clk 0:00:57]} 21. Na4 {[%clk 0:01:17]}  gxf2+ {[%clk 0:00:52]} 22. Qxf2 {[%clk 0:01:15]}  Qxf2+ {[%clk 0:00:51]} 23. Kxf2 {[%clk 0:01:14]}  Bxf6 {[%clk 0:00:50]} 24. exf6 {[%clk 0:01:15]}  Rxf6+ {[%clk 0:00:51]} 25. Kg3 {[%clk 0:01:16]}  Bd7 {[%clk 0:00:51]} 26. Nc5 {[%clk 0:01:16]}  Bc6 {[%clk 0:00:50]} 27. Re7 {[%clk 0:01:13]}  b6 {[%clk 0:00:47]} 28. Ne6 {[%clk 0:01:08]}  Rf7 {[%clk 0:00:47]} 29. Rxf7 {[%clk 0:01:07]}  Kxf7 {[%clk 0:00:47]} 30. Nd4 {[%clk 0:01:08]}  Bd7 {[%clk 0:00:47]} 31. Rf1+ {[%clk 0:01:07]}  Ke7 {[%clk 0:00:46]} 32. Re1+ {[%clk 0:01:08]}  Kd6 {[%clk 0:00:45]} 33. Nf3 {[%clk 0:01:09]}  Re8 {[%clk 0:00:36]} 34. Rd1 {[%clk 0:00:51]}  b5 {[%clk 0:00:28]} 35. Ng5 {[%clk 0:00:44]}  Re7 {[%clk 0:00:25]} 36. Kf4 {[%clk 0:00:39]}  h6 {[%clk 0:00:20]} 37. Nf3 {[%clk 0:00:39]}  g5+ {[%clk 0:00:21]} 38. Kg3 {[%clk 0:00:39]}  a5 {[%clk 0:00:20]} 39. Nd4 {[%clk 0:00:35]}  b4 {[%clk 0:00:19]} 40. Bb5 {[%clk 0:00:29]}  Re3+ {[%clk 0:00:18]} 41. Kf2 {[%clk 0:00:29]}  Ra3 {[%clk 0:00:18]} 42. Rd2 {[%clk 0:00:28]}  Bc8 {[%clk 0:00:18]} 43. Nf3 {[%clk 0:00:12]}  Kc5 {[%clk 0:00:17]} 44. Be2 {[%clk 0:00:11]}  Bf5 {[%clk 0:00:16]} 45. Bd1 {[%clk 0:00:11]}  Be4 {[%clk 0:00:16]} 46. Nd4 {[%clk 0:00:08]}  a4 {[%clk 0:00:16]} 47. Ne6+ {[%clk 0:00:07]}  Kd6 {[%clk 0:00:15]} 48. Nd4 {[%clk 0:00:07]}  Kc5 {[%clk 0:00:15]} 49. Ne6+ {[%clk 0:00:07]}  Kc4 {[%clk 0:00:14]} 50. Be2+ {[%clk 0:00:06]}  Kc3 {[%clk 0:00:14]} 51. Ke1 {[%clk 0:00:05]}  b3 {[%clk 0:00:14]} 52. axb3 {[%clk 0:00:06]}  axb3 {[%clk 0:00:15]} 53. Rd1 {[%clk 0:00:06]}  b2 {[%clk 0:00:15]} 54. Nc5 {[%clk 0:00:04]}  Ra1 {[%clk 0:00:15]} 55. Nd3 {[%clk 0:00:01]}  b1=Q {[%clk 0:00:16]} 0-1


[Site "https://www.chess.com"]

[Event "Titled Tuesday Blitz June 27 Late 2023"]
[White "WindWhistler11"]
[Black "Barp, Alberto"]
[BlackFideId "872555"]
[WhiteElo "2570"]
[BlackElo "2717"]
[Result "0-1"]
[Round "6"]
[TimeControl "180+2"]
[Date "2023.06.27"]
[WhiteClock "0:00:00"]
[BlackClock "0:00:10"]
[Board "46"]

1. Nf3 {[%clk 0:03:00]}  d5 {[%clk 0:02:59]} 2. c4 {[%clk 0:02:59]}  e6 {[%clk 0:02:51]} 3. g3 {[%clk 0:02:58]}  Ne7 {[%clk 0:02:50]} 4. Bg2 {[%clk 0:02:58]}  g6 {[%clk 0:02:50]} 5. h4 {[%clk 0:02:52]}  h6 {[%clk 0:02:49]} 6. h5 {[%clk 0:02:51]}  g5 {[%clk 0:02:49]} 7. d4 {[%clk 0:02:43]}  Bg7 {[%clk 0:02:47]} 8. Nc3 {[%clk 0:02:41]}  Nbc6 {[%clk 0:02:44]} 9. e3 {[%clk 0:02:34]}  O-O {[%clk 0:02:41]} 10. b3 {[%clk 0:02:31]}  dxc4 {[%clk 0:02:05]} 11. bxc4 {[%clk 0:02:30]}  e5 {[%clk 0:02:06]} 12. d5 {[%clk 0:02:17]}  e4 {[%clk 0:01:56]} 13. Nd4 {[%clk 0:02:02]}  Nxd4 {[%clk 0:01:49]} 14. exd4 {[%clk 0:02:02]}  Nf5 {[%clk 0:01:50]} 15. Nxe4 {[%clk 0:01:48]}  Nxd4 {[%clk 0:01:46]} 16. Rb1 {[%clk 0:01:39]}  Re8 {[%clk 0:01:41]} 17. O-O {[%clk 0:01:35]}  Bf5 {[%clk 0:01:41]} 18. Re1 {[%clk 0:01:32]}  Qd7 {[%clk 0:01:21]} 19. Bb2 {[%clk 0:01:26]}  c5 {[%clk 0:01:04]} 20. dxc6 {[%clk 0:01:00]}  bxc6 {[%clk 0:01:01]} 21. c5 {[%clk 0:00:55]}  Rad8 {[%clk 0:00:55]} 22. Bxd4 {[%clk 0:00:40]}  Qxd4 {[%clk 0:00:46]} 23. Qxd4 {[%clk 0:00:38]}  Bxd4 {[%clk 0:00:28]} 24. Nd6 {[%clk 0:00:14]}  Bxb1 {[%clk 0:00:26]} 25. Rxe8+ {[%clk 0:00:11]}  Rxe8 {[%clk 0:00:26]} 26. Nxe8 {[%clk 0:00:11]}  Bxa2 {[%clk 0:00:23]} 27. Bxc6 {[%clk 0:00:10]}  Bxc5 {[%clk 0:00:23]} 28. Nf6+ {[%clk 0:00:10]}  Kg7 {[%clk 0:00:21]} 29. Ne8+ {[%clk 0:00:10]}  Kf8 {[%clk 0:00:21]} 30. Nf6 {[%clk 0:00:11]}  Bd4 {[%clk 0:00:16]} 31. Ng4 {[%clk 0:00:08]}  Bg7 {[%clk 0:00:15]} 32. Ne3 {[%clk 0:00:07]}  Be6 {[%clk 0:00:13]} 33. f4 {[%clk 0:00:05]}  gxf4 {[%clk 0:00:12]} 34. gxf4 {[%clk 0:00:06]}  Bd4 {[%clk 0:00:11]} 35. Kf2 {[%clk 0:00:06]}  Bg4 {[%clk 0:00:12]} 36. f5 {[%clk 0:00:00]}  Bxf5 {[%clk 0:00:10]} 0-1


[Site "https://www.chess.com"]